bitfinex/quotes_BTCUSD_20241222
["timestamp","ask_amount","ask_price","bid_price","bid_amount"]
[1734896282144,2.459611,95679.0,95678.0,8.56e-05]
[1734896282484,2.45306883,95679.0,95678.0,8.56e-05]
[1734896282690,2.45306883,95679.0,95678.0,0.0020856]
[1734896282891,2.56091983,95679.0,95678.0,8.56e-05]
[1734896283319,2.56391983,95679.0,95678.0,8.56e-05]
[1734896283552,2.56091983,95679.0,95678.0,8.56e-05]
[1734896283936,2.55937723,95679.0,95678.0,8.56e-05]
[1734896284288,2.55437723,95679.0,95678.0,8.56e-05]
[1734896285720,2.55737723,95679.0,95678.0,8.56e-05]
[1734896285925,2.55437723,95679.0,95678.0,8.56e-05]
[1734896286281,2.55937723,95679.0,95678.0,8.56e-05]
[1734896286439,2.55437723,95679.0,95678.0,8.56e-05]
[1734896286828,2.55737723,95679.0,95678.0,8.56e-05]
[1734896287026,2.55437723,95679.0,95678.0,8.56e-05]
[1734896287503,2.55937723,95679.0,95678.0,8.56e-05]
[1734896288707,2.55437723,95679.0,95678.0,8.56e-05]
[1734896289094,2.55737723,95679.0,95678.0,8.56e-05]
[1734896289293,2.55437723,95679.0,95678.0,8.56e-05]
[1734896289754,3.56737723,95679.0,95678.0,8.56e-05]
[1734896289901,3.5689201,95679.0,95678.0,8.56e-05]
[1734896290321,3.5719201,95679.0,95678.0,8.56e-05]
[1734896290658,3.5689201,95679.0,95678.0,8.56e-05]
[1734896291354,2.5609201,95679.0,95678.0,8.56e-05]
[1734896291582,5.0029201,95679.0,95678.0,8.56e-05]
[1734896292079,5.0079201,95679.0,95678.0,8.56e-05]
[1734896292496,5.0029201,95679.0,95678.0,8.56e-05]
[1734896292688,4.3789201,95679.0,95678.0,8.56e-05]
[1734896293033,4.3719201,95679.0,95678.0,8.56e-05]
[1734896293449,4.3769201,95679.0,95678.0,8.56e-05]
[1734896293650,4.3719201,95679.0,95678.0,8.56e-05]
[1734896293875,4.0989201,95679.0,95678.0,8.56e-05]
[1734896294080,4.0449201,95679.0,95678.0,8.56e-05]
[1734896294526,3.9569201,95679.0,95678.0,8.56e-05]
[1734896295050,3.0419201,95679.0,95678.0,8.56e-05]
[1734896295267,2.9729201,95679.0,95678.0,8.56e-05]
[1734896295663,2.9779201,95679.0,95678.0,8.56e-05]
[1734896295963,2.5609201,95679.0,95678.0,8.56e-05]
[1734896296181,2.4596117,95679.0,95678.0,8.56e-05]
[1734896296527,2.4656117,95679.0,95678.0,8.56e-05]
[1734896296877,2.4596117,95679.0,95678.0,8.56e-05]
[1734896297166,2.4646117,95679.0,95678.0,8.56e-05]
[1734896299234,5.2886201,95679.0,95678.0,8.56e-05]
[1734896299408,5.3886201,95679.0,95678.0,8.56e-05]
[1734896300293,5.40999056,95679.0,95678.0,8.56e-05]
[1734896300512,5.40499056,95679.0,95678.0,8.56e-05]
[1734896300923,5.98118062,95679.0,95678.0,8.56e-05]
[1734896301509,0.309058,95667.0,95666.0,8.56e-05]
[1734896301708,3.0850664,95667.0,95666.0,8.56e-05]
[1734896302291,3.09160927,95667.0,95666.0,8.56e-05]
[1734896303103,3.09960927,95667.0,95666.0,8.56e-05]
[1734896303665,1.75860927,95667.0,95666.0,8.56e-05]
[1734896303868,1.71960927,95667.0,95666.0,8.56e-05]
[1734896304913,0.31690927,95667.0,95666.0,8.56e-05]
[1734896305110,0.10785127,95667.0,95666.0,8.56e-05]
[1734896305313,0.11685127,95667.0,95666.0,8.56e-05]
[1734896305535,0.10785127,95667.0,95666.0,8.56e-05]
[1734896305897,2.55885127,95667.0,95666.0,8.56e-05]
[1734896306096,2.54985127,95667.0,95666.0,8.56e-05]
[1734896306523,2.55585127,95667.0,95666.0,8.56e-05]
[1734896307484,0.11385127,95667.0,95666.0,8.56e-05]
[1734896307705,0.11385127,95667.0,95666.0,0.07283385]
[1734896308213,0.00654287,95667.0,95666.0,0.07283385]
[1734896308327,0.01554287,95667.0,95666.0,0.07283385]
[1734896308692,0.10785127,95667.0,95666.0,0.07283385]
[1734896308900,0.10785127,95667.0,95666.0,8.56e-05]
[1734896309117,0.11285127,95667.0,95666.0,8.56e-05]
[1734896309439,0.10785127,95667.0,95666.0,8.56e-05]
[1734896309653,0.11285127,95667.0,95666.0,8.56e-05]
[1734896309864,0.10785127,95667.0,95666.0,0.07283385]
[1734896311547,0.11285127,95667.0,95666.0,0.07283385]
[1734896311750,0.10785127,95667.0,95666.0,0.07283385]
[1734896312061,0.11085127,95667.0,95666.0,0.07283385]
[1734896312265,0.10785127,95667.0,95666.0,0.07283385]
[1734896312492,0.00654287,95667.0,95666.0,0.07283385]
[1734896312692,0.003,95667.0,95666.0,0.07283385]
[1734896312896,0.00654339,95667.0,95666.0,0.07283385]
[1734896313289,0.00954339,95667.0,95666.0,0.07283385]
[1734896314572,0.00654339,95667.0,95666.0,0.07283385]
[1734896314937,0.00954339,95667.0,95666.0,0.07283385]
[1734896315132,0.00654339,95667.0,95666.0,0.07283385]
[1734896315509,0.00854339,95667.0,95666.0,0.07283385]
[1734896315844,0.00654339,95667.0,95666.0,0.07283385]
[1734896316055,0.00854339,95667.0,95666.0,0.07283385]
[1734896317841,0.00654339,95667.0,95666.0,0.07283385]
[1734896318166,0.00954339,95667.0,95666.0,0.07283385]
[1734896318368,0.00654339,95667.0,95666.0,0.07283385]
[1734896318798,0.00854339,95667.0,95666.0,0.07283385]
[1734896319763,0.00654339,95667.0,95666.0,0.07283385]
[1734896320657,0.00654339,95678.0,95677.0,0.28178425]
[1734896320780,0.00654339,95678.0,95677.0,0.07274825]
[1734896320994,0.003,95667.0,95666.0,8.56e-05]
[1734896321193,2.5433084,95667.0,95666.0,8.56e-05]
[1734896321434,1.81785179,95667.0,95666.0,8.56e-05]
[1734896321651,1.81785179,95667.0,95666.0,0.0020856]
[1734896322111,1.81785179,95667.0,95666.0,8.56e-05]
[1734896322309,1.81785179,95667.0,95666.0,0.0010856]
[1734896323048,0.10785179,95667.0,95666.0,0.0010856]
[1734896323477,1.30185179,95667.0,95666.0,0.0010856]
[1734896324078,1.30185179,95667.0,95666.0,8.56e-05]
[1734896324408,1.30685179,95667.0,95666.0,8.56e-05]
[1734896324632,0.68685179,95667.0,95666.0,8.56e-05]
[1734896324835,0.54085179,95667.0,95666.0,8.56e-05]
[1734896325038,0.54585179,95667.0,95666.0,8.56e-05]
[1734896325290,0.54085179,95667.0,95666.0,8.56e-05]
[1734896325698,0.54385179,95667.0,95666.0,8.56e-05]
[1734896325829,0.54085179,95667.0,95666.0,8.56e-05]
[1734896326603,0.46285179,95667.0,95666.0,8.56e-05]
[1734896327367,0.46785179,95667.0,95666.0,8.56e-05]
[1734896327568,0.46285179,95667.0,95666.0,8.56e-05]
[1734896327963,0.23185179,95667.0,95666.0,8.56e-05]
[1734896328189,0.10785179,95667.0,95666.0,8.56e-05]
[1734896328393,0.31985179,95667.0,95666.0,8.56e-05]
[1734896328566,0.01154339,95667.0,95666.0,8.56e-05]
[1734896328765,0.00654339,95667.0,95666.0,8.56e-05]
[1734896329342,0.00954339,95667.0,95666.0,8.56e-05]
[1734896329890,0.00954339,95667.0,95666.0,0.07283385]
[1734896330929,0.00654339,95667.0,95666.0,0.07283385]
[1734896331374,0.00954339,95667.0,95666.0,0.07283385]
[1734896331549,0.00654339,95667.0,95666.0,0.07283385]
[1734896332058,0.00754339,95667.0,95666.0,0.07283385]
[1734896332266,0.00654339,95667.0,95666.0,0.07283385]
[1734896332441,0.00954339,95667.0,95666.0,0.07283385]
[1734896332888,0.00654339,95667.0,95666.0,0.07283385]
[1734896334245,0.00654339,95667.0,95666.0,0.07483385]
[1734896334382,0.00654339,95667.0,95666.0,0.07283385]
[1734896334582,0.00654339,95667.0,95666.0,0.03283385]
[1734896334781,0.00654339,95667.0,95666.0,0.03483385]
[1734896334986,0.00654339,95667.0,95666.0,0.03283385]
[1734896335396,0.00654339,95667.0,95666.0,0.03483385]
[1734896337487,0.00654339,95667.0,95666.0,0.03283385]
[1734896337664,0.00654339,95667.0,95666.0,0.08313385]
[1734896338188,0.00654339,95667.0,95666.0,0.08113385]
[1734896338406,0.00654339,95667.0,95666.0,0.08313385]
[1734896338602,0.00654339,95667.0,95666.0,0.08121945]
[1734896339005,0.00654339,95667.0,95666.0,0.08321945]
[1734896339161,0.00654339,95667.0,95666.0,0.08121945]
[1734896340950,0.00654339,95667.0,95666.0,0.08321945]
[1734896341541,0.00654339,95667.0,95666.0,0.03491945]
[1734896341747,0.10785179,95667.0,95666.0,8.56e-05]
[1734896342504,0.10785179,95667.0,95666.0,0.0020856]
[1734896342682,0.10785179,95667.0,95666.0,8.56e-05]
[1734896342885,2.54985179,95667.0,95666.0,0.0010856]
[1734896344133,0.10785179,95667.0,95666.0,0.0010856]
[1734896344324,0.00654339,95667.0,95666.0,0.0010856]
[1734896344523,0.00654339,95667.0,95666.0,8.56e-05]
[1734896344984,0.01254339,95667.0,95666.0,8.56e-05]
[1734896345188,0.00654339,95667.0,95666.0,8.56e-05]
[1734896345593,0.00954339,95667.0,95666.0,8.56e-05]
[1734896345725,0.00654339,95667.0,95666.0,8.56e-05]
[1734896346126,0.001,95667.0,95666.0,8.56e-05]
[1734896346733,0.00754348,95667.0,95666.0,8.56e-05]
[1734896347259,0.001,95667.0,95666.0,8.56e-05]
[1734896347453,0.209054,95669.0,95666.0,8.56e-05]
[1734896347984,0.001,95667.0,95666.0,8.56e-05]
[1734896348710,0.418108,95669.0,95666.0,8.56e-05]
[1734896348914,0.420108,95669.0,95666.0,8.56e-05]
[1734896349145,0.209058,95667.0,95666.0,8.56e-05]
[1734896350085,0.0001712,95667.0,95666.0,8.56e-05]
[1734896350589,0.0011712,95667.0,95666.0,8.56e-05]
[1734896351023,0.0001712,95667.0,95666.0,8.56e-05]
[1734896351426,0.0011712,95667.0,95666.0,8.56e-05]
[1734896352211,0.0001712,95667.0,95666.0,8.56e-05]
[1734896353025,0.01071488,95667.0,95666.0,8.56e-05]
[1734896354499,0.00671488,95667.0,95666.0,8.56e-05]
[1734896354873,0.00771488,95667.0,95666.0,8.56e-05]
[1734896355274,0.00671488,95667.0,95666.0,8.56e-05]
[1734896355481,0.01071488,95667.0,95666.0,8.56e-05]
[1734896356726,0.11202328,95667.0,95666.0,8.56e-05]
[1734896357513,0.10802328,95667.0,95666.0,8.56e-05]
[1734896357933,0.11202328,95667.0,95666.0,8.56e-05]
[1734896358129,0.10802328,95667.0,95666.0,8.56e-05]
[1734896358474,0.11202328,95667.0,95666.0,8.56e-05]
[1734896358674,0.01071488,95667.0,95666.0,0.24197945]
[1734896358903,0.00671488,95667.0,95666.0,0.36557945]
[1734896359108,0.01071488,95667.0,95666.0,0.36557945]
[1734896359485,0.00671488,95667.0,95666.0,0.36557945]
[1734896359686,0.0001712,95667.0,95666.0,0.1236856]
[1734896360015,0.0001712,95667.0,95666.0,0.24197945]
[1734896360212,0.00671488,95667.0,95666.0,0.24197945]
[1734896361395,0.01071488,95667.0,95666.0,0.24197945]
[1734896361765,0.00671488,95667.0,95666.0,0.24197945]
[1734896361990,0.00671488,95667.0,95666.0,0.24297945]
[1734896362793,0.00671488,95667.0,95666.0,0.24197945]
[1734896363220,0.00671488,95667.0,95666.0,0.24397945]
[1734896364219,0.0001712,95667.0,95666.0,0.24397945]
[1734896364542,0.0001712,95667.0,95666.0,0.24197945]
[1734896364919,0.0001712,95667.0,95666.0,0.24497945]
[1734896365278,0.0001712,95667.0,95666.0,0.24197945]
[1734896365503,0.0011712,95667.0,95666.0,0.24497945]
[1734896366269,0.0001712,95667.0,95666.0,0.24197945]
[1734896368176,0.0011712,95667.0,95666.0,0.24497945]
[1734896368600,0.0011712,95667.0,95666.0,0.24197945]
[1734896368800,0.0001712,95667.0,95666.0,0.24197945]
[1734896369038,0.0011712,95667.0,95666.0,0.24497945]
[1734896369354,0.0001712,95667.0,95666.0,0.24197945]
[1734896369571,0.0011712,95667.0,95666.0,0.24497945]
[1734896370065,0.0001712,95667.0,95666.0,0.24197945]
[1734896371569,0.0011712,95667.0,95666.0,0.24497945]
[1734896371778,0.0001712,95667.0,95666.0,0.24197945]
[1734896372127,0.0001712,95667.0,95666.0,0.24497945]
[1734896372333,0.0001712,95667.0,95666.0,0.24197945]
[1734896372734,0.0001712,95667.0,95666.0,0.24497945]
[1734896372927,0.0001712,95667.0,95666.0,0.24197945]
[1734896373364,0.0001712,95667.0,95666.0,0.24397945]
[1734896374562,0.0001712,95667.0,95666.0,0.24197945]
[1734896374948,0.0001712,95667.0,95666.0,0.24397945]
[1734896375129,0.0001712,95667.0,95666.0,0.24197945]
[1734896375527,0.0001712,95667.0,95666.0,0.24497945]
[1734896375939,0.00671488,95667.0,95666.0,0.24497945]
[1734896377113,0.0001712,95667.0,95666.0,0.24497945]
[1734896377694,0.0001712,95667.0,95666.0,0.24197945]
[1734896378165,0.0011712,95667.0,95666.0,0.24497945]
[1734896378565,0.00771488,95667.0,95666.0,0.24537945]
[1734896379003,0.00671488,95667.0,95666.0,0.03331945]
[1734896379208,0.08441488,95667.0,95666.0,0.03531945]
[1734896381363,0.08441488,95667.0,95666.0,0.03331945]
[1734896381956,0.08441488,95667.0,95666.0,0.0004856]
[1734896382152,0.18572328,95667.0,95666.0,0.0004856]
[1734896382364,0.18672328,95667.0,95666.0,0.0004856]
[1734896382715,0.33572328,95667.0,95666.0,0.0004856]
[1734896382917,2.77772328,95667.0,95666.0,0.0004856]
[1734896383148,2.78172328,95667.0,95666.0,0.0004856]
[1734896383345,2.80231834,95667.0,95666.0,0.0004856]
[1734896383989,3.01908449,95667.0,95666.0,0.0004856]
[1734896384611,3.01508449,95667.0,95666.0,0.0004856]
[1734896384815,3.01908449,95667.0,95666.0,0.0004856]
[1734896385172,3.01508449,95667.0,95666.0,0.0004856]
[1734896385391,3.02308449,95667.0,95666.0,0.0004856]
[1734896385599,3.59945616,95667.0,95666.0,0.0004856]
[1734896385799,3.59145616,95667.0,95666.0,0.0004856]
[1734896386157,3.60045616,95667.0,95666.0,0.0004856]
[1734896386361,3.59145616,95667.0,95666.0,0.0004856]
[1734896386571,3.35871634,95667.0,95666.0,0.0004856]
[1734896387866,3.36771634,95667.0,95666.0,0.0004856]
[1734896390573,3.02408449,95667.0,95666.0,0.0004856]
[1734896393120,0.1,95659.0,95657.0,0.00015283]
[1734896393322,0.50405715,95652.0,95647.0,8.56e-05]
[1734896393561,3.19736555,95652.0,95647.0,8.56e-05]
[1734896393939,3.20390923,95652.0,95647.0,8.56e-05]
[1734896394791,3.20390923,95652.0,95651.0,6e-07]
[1734896395028,0.76190923,95652.0,95651.0,6e-07]
[1734896395233,0.2258,95617.0,95608.0,8.57e-05]
[1734896395447,0.359185,95609.0,95608.0,8.57e-05]
[1734896395617,2.9024934,95609.0,95608.0,8.57e-05]
[1734896395861,3.00903708,95609.0,95608.0,8.57e-05]
[1734896396454,3.00910509,95609.0,95608.0,8.57e-05]
[1734896396579,3.07627124,95609.0,95608.0,8.57e-05]
[1734896396778,0.39296615,95608.0,95582.0,8.56e-05]
[1734896397044,0.31716615,95595.0,95582.0,8.56e-05]
[1734896397187,0.359242,95583.0,95582.0,8.56e-05]
[1734896397392,2.9025504,95583.0,95582.0,8.56e-05]
[1734896397594,3.0783504,95583.0,95582.0,8.56e-05]
[1734896397810,3.08489408,95583.0,95582.0,8.56e-05]
[1734896398017,2.07585208,95583.0,95582.0,8.56e-05]
[1734896398221,0.68485208,95583.0,95582.0,8.56e-05]
[1734896398439,0.54533206,95583.0,95582.0,8.56e-05]
[1734896398649,0.55233206,95583.0,95582.0,8.56e-05]
[1734896398847,0.12533206,95583.0,95582.0,8.56e-05]
[1734896399094,0.11833206,95583.0,95582.0,8.56e-05]
[1734896399293,0.02402366,95583.0,95582.0,8.56e-05]
[1734896399707,0.01702366,95583.0,95582.0,8.56e-05]
[1734896399922,0.007,95583.0,95582.0,8.56e-05]
[1734896400775,2.5503084,95583.0,95582.0,8.56e-05]
[1734896401021,2.25685208,95583.0,95582.0,8.56e-05]
[1734896401191,0.56285208,95583.0,95582.0,8.56e-05]
[1734896401395,0.57333206,95583.0,95582.0,8.56e-05]
[1734896401760,0.56633206,95583.0,95582.0,8.56e-05]
[1734896401972,0.57033206,95583.0,95582.0,8.56e-05]
[1734896402173,0.89213206,95583.0,95582.0,8.56e-05]
[1734896402538,0.89913206,95583.0,95582.0,8.56e-05]
[1734896402942,0.89213206,95583.0,95582.0,8.56e-05]
[1734896403143,0.89913206,95583.0,95582.0,8.56e-05]
[1734896403962,0.89913206,95583.0,95580.0,8.56e-05]
[1734896403963,0.1,95581.0,95580.0,6.538e-05]
[1734896404166,2.6433084,95581.0,95580.0,6.538e-05]
[1734896404367,2.79985208,95581.0,95580.0,6.538e-05]
[1734896404780,2.81033206,95581.0,95580.0,6.538e-05]
[1734896405138,0.36833206,95581.0,95580.0,6.538e-05]
[1734896405342,2.81033206,95581.0,95580.0,6.538e-05]
[1734896405611,2.71033206,95581.0,95580.0,6.538e-05]
[1734896405788,2.81033206,95581.0,95580.0,6.538e-05]
[1734896406209,2.88649821,95581.0,95580.0,6.538e-05]
[1734896407587,2.87749821,95581.0,95580.0,6.538e-05]
[1734896407765,2.56033206,95581.0,95580.0,6.538e-05]
[1734896407946,2.56933206,95581.0,95580.0,6.538e-05]
[1734896408148,2.56933206,95581.0,95573.0,7e-05]
[1734896408149,0.418496,95580.0,95573.0,7e-05]
[1734896408380,0.1013084,95579.0,95573.0,7e-05]
[1734896408570,2.860506,95578.0,95573.0,7e-05]
[1734896408804,0.1013084,95574.0,95573.0,7e-05]
[1734896409062,2.9025694,95574.0,95573.0,7e-05]
[1734896409268,1.1855694,95574.0,95573.0,7e-05]
[1734896409440,0.9763084,95574.0,95573.0,0.00061076]
[1734896409678,0.57233206,95574.0,95573.0,0.00061076]
[1734896410266,0.26833206,95574.0,95573.0,0.00061076]
[1734896410566,0.47133206,95574.0,95573.0,0.00061076]
[1734896410777,0.46085208,95574.0,95573.0,0.00061076]
[1734896411765,0.46985208,95574.0,95573.0,0.00061076]
[1734896411932,0.46085208,95574.0,95573.0,0.00061076]
[1734896412158,0.47133206,95574.0,95573.0,0.00061076]
[1734896412363,0.48033206,95574.0,95573.0,0.00061076]
[1734896413149,0.47133206,95574.0,95573.0,0.00061076]
[1734896413962,0.47133206,95574.0,95555.0,8.56e-05]
[1734896413963,0.209301,95556.0,95555.0,8.56e-05]
[1734896414220,0.3106094,95556.0,95555.0,8.56e-05]
[1734896414836,0.32763306,95556.0,95555.0,8.56e-05]
[1734896415144,3.09823306,95556.0,95555.0,8.56e-05]
[1734896415345,3.17139921,95556.0,95555.0,8.56e-05]
[1734896415543,3.17139921,95556.0,95530.0,0.03283385]
[1734896415544,0.1,95553.0,95552.0,0.0113555]
[1734896415754,2.7933084,95553.0,95552.0,0.0113555]
[1734896415956,2.6933084,95553.0,95552.0,0.0113555]
[1734896416178,2.71033206,95553.0,95552.0,0.0113555]
[1734896416391,2.71033206,95553.0,95552.0,5e-07]
[1734896416392,2.96451421,95553.0,95552.0,5e-07]
[1734896416606,0.06716615,95532.0,95506.0,0.03283385]
[1734896416818,2.442,95552.0,95487.0,0.08755781]
[1734896416819,0.06716615,95522.0,95492.0,0.03283385]
[1734896417028,0.02129383,95507.0,95482.0,0.0492]
[1734896417234,0.15,95489.0,95477.0,8.56e-05]
[1734896417445,1.205,95488.0,95478.0,0.03283385]
[1734896417653,2.442,95487.0,95477.0,8.56e-05]
[1734896417854,0.359452,95487.0,95477.0,8.56e-05]
[1734896418061,2.91978406,95487.0,95477.0,8.56e-05]
[1734896418514,3.01978406,95487.0,95477.0,8.56e-05]
[1734896418728,3.08695021,95487.0,95477.0,8.56e-05]
[1734896419105,3.08795021,95487.0,95477.0,8.56e-05]
[1734896419336,0.1,95478.0,95477.0,8.56e-05]
[1734896419570,3.04854655,95478.0,95477.0,6e-07]
[1734896419778,0.61309023,95478.0,95477.0,6e-07]
[1734896419984,0.62357021,95478.0,95477.0,6e-07]
[1734896420187,0.42668215,95458.0,95457.0,0.0143555]
[1734896420397,2.96999055,95458.0,95457.0,0.0143555]
[1734896420602,2.96999055,95458.0,95393.0,0.536]
[1734896420603,0.15,95407.0,95402.0,0.1]
[1734896420807,0.15,95405.0,95403.0,0.1013084]
[1734896421012,0.15,95405.0,95390.0,0.03291945]
[1734896421013,0.15,95403.0,95390.0,0.03291945]
[1734896421216,0.15,95401.0,95390.0,0.03291945]
[1734896421386,0.15,95399.0,95390.0,8.56e-05]
[1734896421590,0.15,95401.0,95390.0,8.56e-05]
[1734896421591,0.15,95397.0,95390.0,8.56e-05]
[1734896421795,0.15,95395.0,95390.0,8.56e-05]
[1734896422002,0.15,95392.0,95390.0,8.56e-05]
[1734896422199,2.6933084,95391.0,95390.0,8.56e-05]
[1734896422430,2.76047455,95391.0,95390.0,8.56e-05]
[1734896422706,2.71033206,95391.0,95390.0,8.56e-05]
[1734896422960,0.06716615,95383.0,95362.0,0.0143555]
[1734896423198,0.1013084,95366.0,95362.0,0.0143555]
[1734896423439,0.15,95363.0,95362.0,0.0143555]
[1734896423725,0.1013084,95363.0,95362.0,0.0143555]
[1734896423949,0.1013084,95363.0,95362.0,0.04718935]
[1734896424467,0.00654368,95365.0,95364.0,0.03283385]
[1734896424647,0.00656205,95395.0,95390.0,0.03283385]
[1734896424854,0.00656205,95395.0,95394.0,0.03283385]
[1734896425060,0.209611,95415.0,95364.0,0.0785]
[1734896425061,0.06716615,95427.0,95400.0,0.03283385]
[1734896425289,0.00054071,95407.0,95393.0,0.03283385]
[1734896425491,1.177,95406.0,95372.0,0.03283385]
[1734896425699,0.209655,95395.0,95365.0,0.03283385]
[1734896425909,0.06716615,95387.0,95360.0,0.005]
[1734896426113,0.21716615,95375.0,95360.0,0.005]
[1734896426306,2.542,95386.0,95360.0,0.005]
[1734896426307,0.31847455,95363.0,95360.0,0.005]
[1734896426480,2.86047455,95363.0,95360.0,0.005]
[1734896426681,2.7933084,95363.0,95360.0,0.005]
[1734896426884,1.10980598,95363.0,95360.0,0.005]
[1734896427211,1.10980598,95363.0,95362.0,0.04718935]
[1734896427212,0.11180598,95363.0,95362.0,0.04718935]
[1734896427440,0.01049758,95363.0,95362.0,0.04718935]
[1734896427646,0.00228367,95385.0,95375.0,0.03283385]
[1734896427851,0.1013084,95384.0,95383.0,0.03283385]
[1734896427997,0.00282405,95385.0,95384.0,0.21851122]
[1734896428201,0.00054038,95385.0,95384.0,0.21851122]
[1734896428968,0.00054038,95385.0,95384.0,0.29701122]
[1734896429166,0.00054038,95385.0,95384.0,0.64831962]
[1734896429365,0.01050128,95434.0,95423.0,0.03283385]
[1734896429572,0.1013084,95427.0,95397.0,0.03283385]
[1734896429795,2.5433084,95426.0,95403.0,0.03283385]
[1734896430042,0.1013084,95426.0,95420.0,0.209599]
[1734896430249,0.121,95425.0,95419.0,0.03283385]
[1734896430467,0.1013084,95424.0,95419.0,0.03283385]
[1734896430592,2.442,95423.0,95419.0,9.035e-05]
[1734896430804,0.1013084,95420.0,95419.0,9.035e-05]
[1734896431168,0.1013084,95420.0,95384.0,0.0785857]
[1734896431169,0.2203084,95420.0,95408.0,0.209626]
[1734896431381,0.15,95419.0,95414.0,0.03283385]
[1734896431586,0.10801023,95418.0,95414.0,0.03283385]
[1734896432012,0.10801023,95418.0,95412.0,0.03283385]
[1734896432225,0.19,95417.0,95414.0,0.03283385]
[1734896432447,0.1013084,95416.0,95412.0,0.03283385]
[1734896432660,0.1013084,95416.0,95414.0,0.03283385]
[1734896432864,0.00670668,95415.0,95412.0,0.03283385]
[1734896433066,0.1013084,95414.0,95412.0,0.03283385]
[1734896433269,0.1013084,95414.0,95404.0,0.209632]
[1734896433270,0.1013084,95414.0,95413.0,0.03283385]
[1734896433646,0.1013084,95414.0,95413.0,0.24244885]
[1734896433852,0.1013084,95414.0,95413.0,0.03283385]
[1734896434325,0.15,95413.0,95403.0,0.03283385]
[1734896434526,0.15,95413.0,95398.0,0.209646]
[1734896434527,0.1013084,95412.0,95408.0,0.03283385]
[1734896434752,0.1013084,95412.0,95409.0,0.209623]
[1734896435335,0.1013084,95412.0,95408.0,0.03283385]
[1734896435608,0.00016215,95420.0,95409.0,0.209623]
[1734896435718,0.00016215,95420.0,95419.0,0.03283385]
[1734896436351,0.00016215,95420.0,95419.0,0.03253889]
[1734896437864,0.10147055,95420.0,95419.0,0.03253889]
[1734896438067,0.15,95419.0,95405.0,0.03253889]
[1734896438354,0.15,95419.0,95409.0,0.03253889]
[1734896438355,0.1013084,95410.0,95409.0,0.03253889]
[1734896438528,0.1013084,95410.0,95384.0,8.57e-05]
[1734896438529,0.1013084,95410.0,95403.0,0.03253889]
[1734896438733,0.1013084,95410.0,95409.0,0.03253889]
[1734896439071,0.1013084,95410.0,95405.0,0.03253889]
[1734896439366,0.1013084,95410.0,95406.0,0.03253889]
[1734896439638,0.1013084,95410.0,95406.0,0.45179789]
[1734896439791,0.159,95419.0,95410.0,0.03253889]
[1734896439792,0.00655955,95417.0,95410.0,0.03253889]
[1734896439994,0.15,95415.0,95410.0,0.03253889]
[1734896440200,0.1081004,95414.0,95410.0,0.03253889]
[1734896441425,0.11465995,95414.0,95410.0,0.03253889]
[1734896441597,0.12265995,95414.0,95410.0,0.03253889]
[1734896441798,0.00655955,95413.0,95406.0,0.03253889]
[1734896442050,0.1013084,95412.0,95406.0,0.03253889]
[1734896442225,0.10810219,95412.0,95405.0,0.03253889]
[1734896442604,0.10810219,95412.0,95406.0,0.03253889]
[1734896442605,0.11466174,95412.0,95406.0,0.03253889]
[1734896442813,0.10810219,95412.0,95410.0,0.03262479]
[1734896443013,0.10810219,95412.0,95410.0,8.59e-05]
[1734896443225,2.592,95411.0,95410.0,8.59e-05]
[1734896443440,2.81167519,95411.0,95410.0,8.59e-05]
[1734896443645,2.81719009,95411.0,95410.0,8.59e-05]
[1734896444271,2.81719009,95411.0,95360.0,0.0527]
[1734896444272,0.16746111,95385.0,95360.0,0.005]
[1734896444475,0.46736951,95385.0,95360.0,0.005]
[1734896444679,2.91607694,95385.0,95360.0,0.005]
[1734896444906,2.76567422,95385.0,95360.0,0.005]
[1734896445139,0.15,95384.0,95368.0,0.03253889]
[1734896445308,0.15,95382.0,95369.0,0.20971]
[1734896445542,0.15,95380.0,95373.0,0.03253889]
[1734896445746,0.21606111,95406.0,95360.0,0.005]
[1734896445747,0.00016203,95384.0,95382.0,0.209683]
[1734896445868,0.00016203,95384.0,95383.0,0.03253889]
[1734896446281,0.01722432,95384.0,95383.0,0.03253889]
[1734896447321,0.06746111,95433.0,95383.0,0.03253889]
[1734896447322,0.1,95445.0,95421.0,0.209597]
[1734896447520,0.1,95445.0,95385.0,0.309676]
[1734896447521,0.00016294,95427.0,95417.0,0.03253889]
[1734896447727,0.1013084,95426.0,95417.0,0.24214289]
[1734896448279,0.1013084,95426.0,95417.0,0.03253889]
[1734896448632,0.1013084,95426.0,95419.0,0.209599]
[1734896448830,0.1013084,95426.0,95424.0,0.20959]
[1734896448831,0.1103084,95426.0,95424.0,0.20959]
[1734896449030,0.1103084,95426.0,95424.0,0.24212889]
[1734896449230,0.1013084,95426.0,95424.0,0.24212889]
[1734896449417,0.00016294,95427.0,95426.0,0.209586]
[1734896449619,0.00016294,95427.0,95426.0,0.24212489]
[1734896450233,0.10147134,95427.0,95423.0,0.03253889]
[1734896450441,0.1103084,95426.0,95425.0,0.03253889]
[1734896450890,0.1013084,95426.0,95425.0,0.03253889]
[1734896451776,0.1093084,95426.0,95425.0,0.03253889]
[1734896451976,0.008,95426.0,95425.0,0.03253889]
[1734896452120,0.00016294,95427.0,95426.0,0.209586]
[1734896452342,0.00016294,95427.0,95426.0,0.24212489]
[1734896454632,0.00516294,95427.0,95426.0,0.24212489]
[1734896455472,0.00016294,95427.0,95426.0,0.24212489]
[1734896455816,0.00716294,95427.0,95426.0,0.24212489]
[1734896456031,0.00016294,95427.0,95426.0,0.24212489]
[1734896457551,0.00016294,95427.0,95410.0,0.2930728]
[1734896457552,0.00016294,95427.0,95415.0,0.03253889]
[1734896457553,0.10747134,95427.0,95415.0,0.03253889]
[1734896457888,0.10747134,95427.0,95386.0,0.536]
[1734896457889,0.15,95424.0,95403.0,0.209635]
[1734896458009,0.15,95422.0,95410.0,0.03253889]
[1734896458205,0.00656724,95421.0,95420.0,0.209599]
[1734896458500,0.00656724,95421.0,95420.0,0.24213789]
[1734896458828,0.00916294,95427.0,95423.0,0.209591]
[1734896459031,0.00916294,95427.0,95426.0,0.03253889]
[1734896459256,0.00016294,95427.0,95426.0,0.03253889]
[1734896459733,0.00672166,95427.0,95426.0,0.03253889]
[1734896460557,0.00672166,95427.0,95426.0,0.24212489]
[1734896461234,0.00972166,95427.0,95426.0,0.24212489]
[1734896461408,0.00016294,95427.0,95426.0,0.24212489]
[1734896461773,0.00116294,95427.0,95426.0,0.24212489]
[1734896461994,0.00016294,95427.0,95426.0,0.24212489]
[1734896462415,0.58847134,95427.0,95404.0,0.03253889]
[1734896462625,2.69980133,95426.0,95405.0,0.209632]
[1734896463825,0.32637755,95421.0,95420.0,0.209599]
[1734896464440,0.11437755,95421.0,95420.0,0.209599]
[1734896464617,0.11437755,95421.0,95419.0,0.03253889]
[1734896464990,0.11437755,95421.0,95420.0,0.209599]
[1734896464991,0.01306915,95421.0,95420.0,0.209599]
[1734896465404,0.00016294,95427.0,95420.0,0.209599]
[1734896465606,0.15,95425.0,95420.0,0.209599]
[1734896465816,0.1013084,95426.0,95425.0,0.03253889]
[1734896466018,0.10786813,95426.0,95425.0,0.03253889]
[1734896466221,0.15,95425.0,95413.0,0.03253889]
[1734896466428,0.15,95406.0,95398.0,0.03253889]
[1734896466636,0.15,95404.0,95387.0,0.03253889]
[1734896466840,0.15,95402.0,95384.0,0.03262449]